[Event "ChessKid Cup Div-III 2023"]
[Site "Online"]
[Date "2023.05.22"]
[Round "1.1"]
[White "Sasikiran, Krishnan"]
[Black "Pichot, Alan"]
[Result "0-1"]
[ECO "C60"]
[WhiteElo "2604"]
[BlackElo "2638"]
[Annotator "TA"]
[PlyCount "74"]
[EventDate "2023.05.21"]
[EventType "k.o."]
[EventCountry "NET"]
[SourceTitle "playchess.com"]
[Source "ChessBase"]
[SourceQuality "1"]
[TimeControl "900+3"]

{[%evp 9,74,29,37,25,23,-7,-8,-19,-12,-17,4,-18,0,-15,-8,-36,-31,-45,-54,-43,-54,-46,-39,-51,-40,-42,-66,-51,-54,-42,-20,-15,-24,-81,0,-102,-116,-176,-22,-8,-35,-21,-16,-49,-1,-2,0,0,0,0,52,0,0,-105,-119,-149,-131,-263,-205,-500,-476,-607,-595,-1540,-1558,-1301,-1277]} 1. e4 {[%emt 0:00:06]} e5 {[%emt 0:00:09]} 2. Nf3 {[%emt 0:00:01]} Nc6 {[%emt 0:00:02]} 3. Bb5 {[%emt 0:00:01]} a6 {[%emt 0:00:01]} 4. Ba4 {[%emt 0:00:01]} Nge7 {[%emt 0:00:01]} 5. O-O {[%emt 0:00:43]} Ng6 {[%emt 0:00:04]} 6. c3 {[%emt 0:00:08] C60: Ruy Lopez: Unusual Black 3rd moves and 3...g6.} d5 {[%emt 0:00:10]} 7. d3 {[%emt 0:02:26]} Be7 {[%emt 0:00:35]} 8. Nbd2 {[%emt 0:01:05] The position is equal.} O-O {[%emt 0:00:10]} 9. Re1 {[%emt 0:00:19]} b5 {[%emt 0:00:55] [#]} 10. Bc2 $146 {[%emt 0:00:56]} ({Predecessor:} 10. Bb3 Be6 11. Nf1 dxe4 12. Bxe6 exf3 13. Qxf3 Nd4 14. cxd4 fxe6 15. Qg4 exd4 16. Qxe6+ {1-0 Arakhamia Grant,K (2177)-Demchenko,A (2583) Lindores Abbey Blitz Tal Memorial 2021 (1.53)}) 10... Be6 {[%emt 0:00:33]} 11. a4 {[%emt 0:00:44]} b4 {[%emt 0:00:46]} 12. a5 {[%emt 0:01:31]} Rb8 {[%emt 0:00:22]} 13. d4 {[%emt 0:01:33]} bxc3 {[%emt 0:00:35]} 14. bxc3 {[%emt 0:00:11]} exd4 $1 {[%emt 0:00:07]} 15. cxd4 {[%emt 0:00:24]} Bb4 {[%emt 0:00:51]} 16. e5 {[%emt 0:00:59]} Bg4 {[%emt 0:02:00] Strongly threatening ...Nxd4.} 17. h3 {[%emt 0:01:08]} Bxf3 {[%emt 0:01:12]} 18. Nxf3 {[%emt 0:00:00]} Bxe1 {[%emt 0:00:02]} 19. Qxe1 {[%emt 0:01:21]} Nh4 {[%emt 0:00:02] And now ...Nxf3+ would win.} 20. Ng5 {[%emt 0:00:39]} h6 {[%emt 0:00:04][%cal Oc6d4] Threatens to win with ...Nxd4!} (20... Nxd4 $2 21. Bxh7+ Kh8 22. Qd1 $18) 21. Qc3 {[%emt 0:00:07] [#] Nxf7 is the strong threat.} Nxd4 {[%emt 0:01:49]} (21... Nxe5 $1 $17 {...Neg6 would be deadly.} 22. dxe5 (22. Nh7 Nef3+ 23. gxf3 Re8 $17) 22... hxg5) 22. Qxd4 {[%emt 0:00:48]} (22. Bh7+ $1 $11 {was the only way to keep the balance.} Kh8 23. Qxd4 hxg5 24. Bd3) 22... hxg5 $17 {[%emt 0:00:02]} 23. Qg4 {[%emt 0:00:04] [#]} (23. Bd3 $17 {was worth a try.}) 23... f5 $2 {[%emt 0:00:25]} (23... Qe7 $1 $19 {[%cal Re7e5]} 24. Qxg5 Qxg5 25. Bxg5 Ng6) 24. Qxg5 $11 {[%emt 0:00:11]} Qxg5 {[%emt 0:00:01]} 25. Bxg5 {[%emt 0:00:01] A strong pair of Bishops.} Ng6 {[%emt 0:00:00]} 26. f4 {[%emt 0:00:04]} c5 {[%emt 0:00:42]} (26... Rb2 $1 $15 {should be considered.} 27. Rc1 Rb4) 27. g4 {[%emt 0:00:10]} Rfe8 {[%emt 0:01:05]} 28. gxf5 {[%emt 0:00:18]} Ne7 {[%emt 0:00:23]} 29. Rd1 {[%emt 0:00:13]} d4 {[%emt 0:00:21]} ({Better is} 29... Kf7 $11) 30. Bd3 {[%emt 0:00:02]} (30. Be4 $1 $14) 30... Kf8 {[%emt 0:00:18]} 31. Rc1 {[%emt 0:00:11]} (31. f6 $11 {keeps the balance.} Nc6 32. Bxa6) 31... Rb3 $17 {[%emt 0:00:11]} 32. Bxa6 {[%emt 0:00:05]} Rc3 {[%emt 0:00:10]} 33. Rb1 {[%emt 0:00:08] Loses the game.} ({Avoid the trap} 33. Rxc3 $2 dxc3 34. f6 (34. Bd3 $2 Rd8 $19) 34... gxf6 35. exf6 (35. Bxf6 $2 c2 $19) 35... c2 $19) (33. Bxe7+ $17 Kxe7 34. Rb1) 33... Nxf5 $19 {[%emt 0:00:05]} 34. Kf2 $2 {[%emt 0:00:03]} (34. Be2 Ng3 35. Bg4) 34... d3 {[%emt 0:00:07][%cal Bd4d3,Bd3d2][%mdl 32] Black is clearly winning.} ({Worse is} 34... Rxh3 35. Rb7 $11) ({Stronger than} 34... Ra8 35. Bb7 Rb8 36. a6 $17) 35. Ke1 {[%emt 0:00:03]} c4 {[%emt 0:00:09]} 36. Rb7 {[%emt 0:00:03]} Rc1+ {[%emt 0:00:05]} 37. Kf2 {[%emt 0:00:03]} d2 {[%emt 0:00:06] Weighted Error Value: White=0.67/Black=0.16 (very precise)} 0-1

[Event "ChessKid Cup Div-III 2023"]
[Site "Online"]
[Date "2023.05.22"]
[Round "1.1"]
[White "Vaibhav, Suri"]
[Black "Chigaev, Maksim"]
[Result "1/2-1/2"]
[ECO "A13"]
[WhiteElo "2595"]
[BlackElo "2628"]
[Annotator "TA"]
[PlyCount "157"]
[EventDate "2023.05.21"]
[EventType "k.o."]
[EventCountry "NET"]
[SourceTitle "playchess.com"]
[Source "ChessBase"]
[SourceQuality "1"]
[TimeControl "900+3"]

{[%evp 12,157,4,10,0,0,0,7,25,29,10,11,18,17,14,18,43,18,25,9,32,29,58,50,41,34,43,34,37,19,20,29,22,39,38,22,34,39,27,18,29,10,14,0,0,0,0,0,0,0,0,0,33,16,118,122,138,142,210,217,211,195,195,210,247,193,201,193,231,208,360,317,393,370,379,379,364,368,411,398,392,396,504,469,566,552,673,666,598,468,610,597,566,483,438,193,175,41,41,41,41,0,0,0,0,0,0,0,0,0,0,0,0,0,0,0,0,0,0,0,0,0,0,0,0,0,0,0,12848,0,0,0,12844,0,12848,12848,12849,0,0,0,0,0,0,0,0,0,0,0]} 1. d4 {[%emt 0:00:04]} Nf6 {[%emt 0:00:08]} 2. c4 {[%emt 0:00:01]} e6 {[%emt 0:00:03]} 3. Nf3 {[%emt 0:00:16]} d5 {[%emt 0:00:00]} 4. Nc3 {[%emt 0:00:11]} Be7 {[%emt 0:00:02]} 5. e3 {[%emt 0:00:18]} O-O {[%emt 0:00:03]} 6. b3 {[%emt 0:00:01]} c5 {[%emt 0:00:25]} 7. Bb2 {[%emt 0:00:04] 7.dxc5 gains popularity.} cxd4 {[%emt 0:00:10] A13: English Opening: 1...e6.} 8. Nxd4 {[%emt 0:00:02]} dxc4 {[%emt 0:00:03]} 9. Bxc4 {[%emt 0:00:02]} Bd7 {[%emt 0:00:00]} 10. O-O {[%emt 0:00:08]} Nc6 {[%emt 0:00:01]} 11. Nf3 {[%emt 0:00:14]} Qa5 {[%emt 0:00:19]} 12. a3 {[%emt 0:01:22]} Rfd8 {[%emt 0:00:22]} 13. b4 {[%emt 0:00:30]} Qh5 {[%emt 0:00:02] [#]} 14. Qe2 $146 {[%emt 0:00:01]} ({Predecessor:} 14. Be2 Rac8 15. Rc1 a6 16. Na4 Be8 17. Qb3 b5 18. Nc3 a5 19. Nxb5 axb4 20. Nfd4 Nxd4 21. Nxd4 {½-½ Santos Ruiz,M (2567)-Suleymanli,A (2416) Abu Dhabi op 26th 2019 (7)}) 14... Rac8 {[%emt 0:00:32]} 15. Rfd1 {[%emt 0:00:13]} a6 {[%emt 0:00:06]} 16. h3 {[%emt 0:00:40]} h6 {[%emt 0:00:18]} 17. Qf1 {[%emt 0:02:26]} e5 {[%emt 0:01:16][%cal Od7h3]} 18. Nd5 $1 {[%emt 0:02:15]} Bxh3 {[%emt 0:01:05][%mdl 64] [#] Deflection} 19. Nxe7+ {[%emt 0:00:45]} Nxe7 {[%emt 0:00:03]} 20. Nxe5 {[%emt 0:00:18]} (20. gxh3 Qxf3 21. Bxe5 (21. Rxd8+ Rxd8 22. Bxe5 Qh5 $15) 21... Qf5 22. Bxf6 Qxf6 $11) (20. Rxd8+ {simplifies} Rxd8 21. Bxe5 Ne8 22. Bg3) 20... Be6 {[%emt 0:00:10] Hoping for ...Rxd1.} 21. Be2 {[%emt 0:01:32] A strong pair of Bishops.} Ng4 {[%emt 0:00:13]} 22. Nxg4 {[%emt 0:00:03]} Bxg4 {[%emt 0:00:01]} 23. f3 {[%emt 0:00:02]} Be6 {[%emt 0:00:01]} 24. Rxd8+ {[%emt 0:00:03]} Rxd8 {[%emt 0:00:01]} 25. Rd1 {[%emt 0:00:01]} Rc8 {[%emt 0:00:09]} 26. Rc1 {[%emt 0:00:26]} Rd8 {[%emt 0:00:30]} 27. Rc5 {[%emt 0:00:43]} Qg6 {[%emt 0:00:31]} 28. Qc1 {[%emt 0:00:14]} Nf5 {[%emt 0:00:45]} 29. Be5 {[%emt 0:00:32][%cal Bb2e5,Be5f4,Bf4c7][%mdl 32]} Nh4 {[%emt 0:00:59][%csl Gh4][%cal Rg6g2]} 30. g3 {[%emt 0:00:01] Black must now prevent e4.} b6 {[%emt 0:00:10]} 31. Rc3 {[%emt 0:00:13] e4 would be deadly.} Qf5 {[%emt 0:00:07]} 32. Bf4 {[%emt 0:00:07]} (32. gxh4 Qxe5 33. Qe1 Qf5 $17) 32... Ng6 {[%emt 0:00:37]} (32... g5 $1 $11) 33. Bc7 $36 {[%emt 0:00:06][%mdl 2048] White has strong initiative.} (33. Bxa6 $6 b5 $11) 33... Rd7 {[%emt 0:00:07] [#]} 34. e4 $1 {[%emt 0:00:13]} (34. Bxa6 $2 Qxf3 35. Bd3 Bd5 $19) (34. Bxb6 $6 Qg5 35. Qe1 (35. Bxa6 Qxg3+ 36. Kh1 Qxf3+ 37. Kg1 Qg3+ 38. Kf1 Bh3+ 39. Ke2 Qh2+ 40. Ke1 Qg1+ 41. Ke2 Bg4#) 35... Rd2 $11) 34... Qf6 {[%emt 0:00:23]} (34... Qh3 $16 35. Bf1 (35. Bxb6 $2 Qxg3+ 36. Kh1 Qh4+ 37. Kg1 Nf4 $19) 35... Qh5) 35. Bxb6 $18 {[%emt 0:00:01]} (35. Bxa6 Bc4 36. e5 (36. Bxc4 Rxc7 37. Qd2 b5 $17) (36. Rxc4 $2 Qxf3 37. Rc6 Rd1+ $19) 36... Nxe5 37. Bxe5 (37. Bxc4 $2 Nxf3+ 38. Rxf3 Qxf3 $19) 37... Qxe5 38. Bxc4 Qxg3+ 39. Kf1 Qh3+ 40. Kg1 Qg3+ 41. Kf1 Qh3+ 42. Kg1 Qg3+ $11) 35... Bc4 {[%emt 0:00:53]} 36. Bxc4 {[%emt 0:00:27]} Qxb6+ {[%emt 0:00:01]} 37. Kg2 {[%emt 0:00:00]} Kh7 {[%emt 0:00:22]} 38. Bd5 {[%emt 0:00:13]} Ne5 {[%emt 0:00:01]} 39. Qe3 {[%emt 0:00:27]} Qf6 {[%emt 0:00:30]} 40. Rc8 {[%emt 0:00:14] Black is weak on the light squares} g6 $2 {[%emt 0:00:15]} (40... g5 {was worth a try.} 41. a4 h5) 41. Qc3 {[%emt 0:00:35]} h5 {[%emt 0:00:38]} 42. f4 {[%emt 0:00:24]} Ng4 {[%emt 0:00:01]} 43. Qxf6 {[%emt 0:00:06]} Nxf6 {[%emt 0:00:00][%mdl 4096] Endgame KRB-KRN} 44. Rc5 {[%emt 0:00:02]} Ng4 {[%emt 0:01:36]} 45. Kf3 {[%emt 0:00:02]} Kg7 {[%emt 0:00:06]} 46. Rc6 {[%emt 0:00:06]} f5 {[%emt 0:00:36]} 47. Rb6 {[%emt 0:00:09]} Rd8 {[%emt 0:00:10]} 48. Rxa6 {[%emt 0:00:07]} Nf6 {[%emt 0:00:08]} 49. Ra7+ {[%emt 0:00:09]} Kh6 {[%emt 0:00:04]} 50. Ra5 {[%emt 0:00:02]} fxe4+ {[%emt 0:00:49]} 51. Bxe4 {[%emt 0:00:00]} Rd4 {[%emt 0:00:01]} 52. Re5 {[%emt 0:00:04]} Rc4 {[%emt 0:00:00]} 53. Re6 {[%emt 0:00:04]} (53. Bd3 Rc3 54. Ke3 Rxa3 $18) (53. Bb1 $142) 53... Rc3+ {[%emt 0:00:01]} 54. Kg2 {[%emt 0:00:02]} (54. Kf2 $18 Kg7 55. Bf3) 54... Nxe4 $14 {[%emt 0:00:02]} 55. Rxe4 {[%emt 0:00:01]} Rxa3 {[%emt 0:00:01] KR-KR} 56. Re8 {[%emt 0:00:04]} Rb3 {[%emt 0:00:04]} 57. Rb8 {[%emt 0:00:02]} h4 {[%emt 0:00:07]} 58. gxh4 {[%emt 0:00:08] And now b5 would win.} Kh5 {[%emt 0:00:19]} 59. b5 {[%emt 0:00:02]} Kxh4 {[%emt 0:00:39]} 60. b6 {[%emt 0:00:00][%cal Of4f5] f5! is the strong threat.} Kg4 {[%emt 0:00:04]} 61. b7 {[%emt 0:00:01]} Rb2+ {[%emt 0:00:03]} 62. Kf1 {[%emt 0:00:05]} Kf3 {[%emt 0:00:01][%cal Rb2b1]} 63. Ke1 {[%emt 0:00:01]} Rb1+ {[%emt 0:00:04]} 64. Kd2 {[%emt 0:00:01]} Rb6 {[%emt 0:00:00]} 65. Kd3 {[%emt 0:00:08]} Rb1 {[%emt 0:00:01]} 66. Kd4 {[%emt 0:00:01]} Rb4+ {[%emt 0:00:04]} 67. Kc5 {[%emt 0:00:10]} Rb1 {[%emt 0:00:07]} 68. Kd5 {[%emt 0:00:06]} Rb6 {[%emt 0:00:13]} 69. Ke5 {[%emt 0:00:02]} Rb5+ $2 {[%emt 0:00:16][%mdl 8192]} (69... Ke3 $11) 70. Ke6 $2 {[%emt 0:00:05]} (70. Kf6 $18 Rb6+ 71. Kg5) 70... Rb6+ $1 $11 {[%emt 0:00:09]} 71. Kd7 {[%emt 0:00:07] Strongly threatening Kc7.} Rb4 $2 {[%emt 0:00:17][%mdl 8192]} (71... Kxf4 $11 72. Rf8+ Ke3) 72. Ke7 $2 {[%emt 0:00:04]} (72. Kc6 $18 Kxf4 73. Rf8+ Ke3 74. Rg8 (74. b8=B g5 $11)) 72... Rb5 $2 {[%emt 0:00:02][%mdl 8192]} (72... Rb6 $11) 73. Kf6 $18 {[%emt 0:00:05]} Rb6+ {[%emt 0:00:06]} 74. Kg7 $2 {[%emt 0:00:05]} (74. Kg5 $18 Rb1 75. Kxg6 Rg1+ 76. Kf6) 74... Kg4 $1 $11 {[%emt 0:00:05] The position is equal.} 75. Kh6 {[%emt 0:00:04]} g5+ {[%emt 0:00:02]} 76. Kg7 {[%emt 0:00:03]} gxf4 {[%emt 0:00:01]} 77. Kf7 {[%emt 0:00:03]} Kf3 {[%emt 0:00:05]} 78. Ke7 {[%emt 0:00:01]} Rb1 {[%emt 0:00:00]} 79. Kd7 {[%emt 0:00:02] Weighted Error Value: White=0.19 (very precise) /Black=0.26 (precise)} 1/2-1/2

[Event "ChessKid Cup Div-III 2023"]
[Site "Online"]
[Date "2023.05.22"]
[Round "1.1"]
[White "Bernadskiy, Vitaliy"]
[Black "Narayanan, Srinath"]
[Result "1-0"]
[ECO "C85"]
[WhiteElo "2592"]
[BlackElo "2559"]
[Annotator "TA"]
[PlyCount "77"]
[EventDate "2023.05.21"]
[EventType "k.o."]
[EventCountry "NET"]
[SourceTitle "playchess.com"]
[Source "ChessBase"]
[SourceQuality "1"]
[TimeControl "900+3"]

{[%evp 13,77,8,15,8,16,0,22,0,31,23,58,57,64,60,417,417,418,416,417,412,429,419,417,416,524,521,500,494,550,513,549,479,556,552,547,543,550,541,546,540,553,568,567,560,560,548,651,646,885,885,878,798,763,780,837,822,1005,882,842,835,1063,1176,29985,29986,29981,29982]} 1. e4 {[%emt 0:00:13]} e5 {[%emt 0:00:07]} 2. Nf3 {[%emt 0:00:02]} Nc6 {[%emt 0:00:02]} 3. Bb5 {[%emt 0:00:02]} a6 {[%emt 0:00:06]} 4. Ba4 {[%emt 0:00:02]} Nf6 {[%emt 0:00:01][%cal Bg8f6,Bf6d7,Bd7c5][%mdl 32]} 5. O-O {[%emt 0:00:02]} Be7 {[%emt 0:00:01]} 6. Bxc6 {[%emt 0:00:02]} dxc6 {[%emt 0:00:02]} 7. d3 {[%emt 0:00:00]} Nd7 {[%emt 0:00:09]} 8. Be3 {[%emt 0:00:02] C85: Closed Ruy Lopez: Deferred Exchange Variation.} O-O {[%emt 0:00:03]} 9. Nc3 {[%emt 0:00:01]} f6 {[%emt 0:00:04]} 10. Nh4 {[%emt 0:00:16] [#] The position is equal.} Nc5 $146 {[%emt 0:00:08]} ({Predecessor:} 10... Nb8 11. Nf5 Bxf5 12. exf5 c5 13. Ne4 Nd7 14. c3 Kh8 15. Qb3 b6 16. Rad1 Qe8 {1-0 Jarmula,L (2452)-Danielyan,V (2295) Warsaw Najdorf Memorial op-A 2022 (8)}) 11. Nf5 {[%emt 0:00:04]} Bxf5 {[%emt 0:01:49]} 12. exf5 {[%emt 0:00:00]} a5 {[%emt 0:00:00]} 13. Qg4 {[%emt 0:00:44]} Qd7 $2 {[%emt 0:00:29][%mdl 8192] [#]} (13... Kh8 $14) 14. Bxc5 $1 $18 {[%emt 0:00:04]} ({Worse is} 14. Qc4+ Kh8 $11) 14... Bxc5 {[%emt 0:00:02]} 15. Qc4+ {[%emt 0:00:01]} Rf7 {[%emt 0:00:19]} 16. Qxc5 {[%emt 0:00:04]} Qxf5 {[%emt 0:00:01] [#]} 17. f4 $1 {[%emt 0:00:03]} Qe6 {[%emt 0:00:39]} 18. fxe5 {[%emt 0:00:05]} fxe5 {[%emt 0:00:01]} 19. Rxf7 {[%emt 0:00:02]} Kxf7 {[%emt 0:00:00]} 20. Re1 {[%emt 0:00:04]} Kg8 {[%emt 0:00:01]} 21. Qxe5 {[%emt 0:00:02]} Qf7 {[%emt 0:00:03]} 22. Qe6 {[%emt 0:00:01]} h6 {[%emt 0:00:04]} 23. Qxf7+ {[%emt 0:00:04]} Kxf7 {[%emt 0:00:00][%mdl 4096] Endgame KRN-KR} 24. a4 {[%emt 0:00:02]} Rd8 {[%emt 0:00:01]} 25. b3 {[%emt 0:00:01]} Rd6 {[%emt 0:00:01]} 26. Re5 {[%emt 0:00:05]} b6 {[%emt 0:00:02]} 27. g3 {[%emt 0:00:03]} Rf6 {[%emt 0:00:08]} 28. Kg2 {[%emt 0:00:02]} Rd6 {[%emt 0:00:01]} 29. Re4 {[%emt 0:00:03]} g5 {[%emt 0:00:02]} 30. h4 {[%emt 0:00:02]} Kg6 {[%emt 0:00:01]} 31. hxg5 {[%emt 0:00:01]} hxg5 {[%emt 0:00:00]} 32. Re5 {[%emt 0:00:01]} Kf6 {[%emt 0:00:01]} 33. Re8 {[%emt 0:00:21] aiming for Ne4+.} Rd7 {[%emt 0:00:04]} 34. Ne4+ {[%emt 0:00:02]} Kf5 {[%emt 0:00:24]} 35. Kf3 {[%emt 0:00:14]} g4+ {[%emt 0:00:03]} 36. Ke3 {[%emt 0:00:02]} Rh7 {[%emt 0:00:01]} 37. Rf8+ {[%emt 0:00:03]} Ke5 {[%emt 0:00:03]} 38. d4+ {[%emt 0:00:01]} Ke6 {[%emt 0:00:02]} 39. Ng5+ {[%emt 0:00:01] White took control after the opening.   Weighted Error Value: White=0.08 (flawless) /Black=0.55} 1-0

[Event "ChessKid Cup Div-III 2023"]
[Site "Online"]
[Date "2023.05.22"]
[Round "1.1"]
[White "Lazavik, Denis"]
[Black "Gadimbayli, Abdulla"]
[Result "1-0"]
[ECO "E33"]
[WhiteElo "2544"]
[BlackElo "2500"]
[Annotator "TA"]
[PlyCount "131"]
[EventDate "2023.05.21"]
[EventType "k.o."]
[EventCountry "NET"]
[SourceTitle "playchess.com"]
[Source "ChessBase"]
[SourceQuality "1"]
[TimeControl "900+3"]

{[%evp 15,131,25,36,32,34,41,59,59,60,45,58,55,66,55,65,60,63,63,54,66,67,47,48,48,66,66,67,46,69,45,47,28,30,30,30,7,7,7,8,7,7,7,27,9,9,7,7,7,7,7,7,7,7,7,17,7,7,7,7,7,7,7,7,7,7,7,7,7,7,7,7,7,7,0,7,0,7,7,10,0,14,14,14,0,0,0,29,29,29,29,29,29,53,53,118,118,118,118,118,118,118,118,118,118,118,118,118,118,29975,662,897,894,29979,29980,29980,29981,29981,29981]} 1. d4 {[%emt 0:00:04]} Nf6 {[%emt 0:00:07]} 2. c4 {[%emt 0:00:02]} e6 {[%emt 0:00:01]} 3. Nf3 {[%emt 0:00:02]} Nc6 {[%emt 0:00:01]} 4. Nc3 {[%emt 0:00:33]} Bb4 {[%emt 0:00:04]} 5. Qc2 {[%emt 0:00:02]} O-O {[%emt 0:01:16]} 6. Bd2 {[%emt 0:00:19][%cal Bc1d2,Bd2c3,Bc3d4][%mdl 32]} d6 {[%emt 0:00:54]} 7. a3 {[%emt 0:00:06]} Bxc3 {[%emt 0:00:01]} 8. Bxc3 {[%emt 0:00:00]} Qe7 {[%emt 0:00:00]} 9. e4 {[%emt 0:00:50] E33: Nimzo-Indian: Classical: 4...Nc6.} e5 {[%emt 0:00:16]} 10. d5 {[%emt 0:00:03]} Nd4 {[%emt 0:00:04]} 11. Nxd4 {[%emt 0:00:06] White is slightly better.} exd4 {[%emt 0:00:00]} 12. Bxd4 {[%emt 0:00:00]} Qxe4+ {[%emt 0:00:56]} 13. Qxe4 {[%emt 0:00:04]} Nxe4 {[%emt 0:00:00]} 14. b4 {[%emt 0:03:56]} Re8 {[%emt 0:01:11]} 15. O-O-O {[%emt 0:00:50]} Bf5 {[%emt 0:03:28]} 16. Bd3 {[%emt 0:00:11]} Bg6 {[%emt 0:00:03]} 17. Rhe1 {[%emt 0:00:10] [#]} Kf8 $146 {[%emt 0:01:39]} ({Predecessor:} 17... a5 18. f3 Nf6 19. Rxe8+ Nxe8 20. Bxg6 fxg6 21. Kb2 axb4 22. axb4 Nf6 23. Kb3 Kf7 {½-½ Bosetti,R (1880)-Bigando,M (1884) ITA CIM33 email 2016 [6]}) 18. f3 {[%emt 0:00:24] White is more active.} Nf6 {[%emt 0:00:04] aiming for ...Rxe1.} 19. Bf1 {[%emt 0:00:07]} a5 {[%emt 0:00:30]} 20. Rxe8+ {[%emt 0:00:11]} Kxe8 {[%emt 0:00:25]} 21. Kb2 {[%emt 0:00:12]} b6 {[%emt 0:00:09]} 22. g4 {[%emt 0:00:37]} Kf8 {[%emt 0:00:25]} 23. h4 {[%emt 0:00:15] Bxf6 would be deadly.} h5 {[%emt 0:01:09]} 24. g5 {[%emt 0:00:34]} Ng8 {[%emt 0:00:01]} 25. Re1 {[%emt 0:00:06]} Bf5 {[%emt 0:00:14]} 26. Re3 {[%emt 0:00:37]} f6 {[%emt 0:00:28]} 27. f4 {[%emt 0:00:36]} Kf7 {[%emt 0:00:06]} 28. Be2 {[%emt 0:00:32]} g6 {[%emt 0:00:44]} 29. Bc3 {[%emt 0:01:08]} axb4 {[%emt 0:00:08]} 30. axb4 {[%emt 0:00:01]} fxg5 {[%emt 0:00:17]} 31. fxg5 {[%emt 0:00:03]} Re8 {[%emt 0:00:56]} 32. Rxe8 {[%emt 0:01:03]} Kxe8 $11 {[%emt 0:00:01][%mdl 4096] Endgame KBB-KBN} 33. Be1 {[%emt 0:00:05]} Ne7 {[%emt 0:00:04]} 34. Kc3 {[%emt 0:00:03]} Bg4 {[%emt 0:00:26]} 35. Bd3 {[%emt 0:00:39]} Bf5 {[%emt 0:00:02]} 36. Bf1 {[%emt 0:00:02]} Bb1 {[%emt 0:00:09]} 37. Bg2 {[%emt 0:00:09]} Nf5 {[%emt 0:00:03]} 38. Bf2 {[%emt 0:00:03]} Kd7 {[%emt 0:00:02]} 39. Bf3 {[%emt 0:01:03]} Ke8 {[%emt 0:00:12]} 40. Bd1 {[%emt 0:00:04]} Be4 {[%emt 0:00:03]} 41. Ba4+ {[%emt 0:00:04]} Ke7 {[%emt 0:00:01]} 42. Bc6 {[%emt 0:00:05]} Kd8 {[%emt 0:00:05]} 43. Bb5 {[%emt 0:00:16]} Ke7 {[%emt 0:00:04]} 44. Bc6 {[%emt 0:00:06]} Kd8 {[%emt 0:00:01]} 45. Kb3 {[%emt 0:00:00]} Ne7 {[%emt 0:00:05]} 46. Ba4 {[%emt 0:00:03]} Nf5 {[%emt 0:00:04]} 47. Kc3 {[%emt 0:00:10]} Ke7 {[%emt 0:00:02]} 48. Bb3 {[%emt 0:00:01]} Kd8 {[%emt 0:00:06]} 49. c5 {[%emt 0:00:23]} bxc5 {[%emt 0:00:00]} 50. bxc5 {[%emt 0:00:01]} dxc5 {[%emt 0:00:04]} 51. Kc4 {[%emt 0:00:01]} c6 {[%emt 0:00:14]} 52. dxc6 {[%emt 0:00:03]} (52. Bxc5 Bxd5+ 53. Kb4 Bxb3 54. Kxb3 Nxh4 $19) 52... Bxc6 {[%emt 0:00:01]} 53. Kxc5 {[%emt 0:00:00]} Be4 {[%emt 0:00:03]} 54. Bf7 {[%emt 0:00:03]} Ng7 {[%emt 0:00:08] [#]} (54... Ke7 $1 $14 55. Bxg6 Ng3) 55. Kd6 $1 $16 {[%emt 0:00:04] Strongly threatening Bb6+.} Ne8+ {[%emt 0:00:01]} 56. Ke5 {[%emt 0:00:01][%cal Of7e8] White wants to mate with Bxe8!} Bb1 {[%emt 0:00:04]} 57. Bc5 {[%emt 0:00:02]} Kd7 {[%emt 0:00:04]} 58. Bb3 {[%emt 0:00:15]} Bf5 {[%emt 0:00:02]} 59. Ba4+ {[%emt 0:00:01]} Kd8 {[%emt 0:00:00]} 60. Bb4 {[%emt 0:00:07]} Bb1 {[%emt 0:00:06]} 61. Bb3 {[%emt 0:00:04] Hoping for Ke6.} Nc7 {[%emt 0:00:05][%mdl 8192] [#] This move loses the game for Black.} (61... Kd7 $16 62. Bc5 Bd3 63. Ba4+ Kd8) 62. Kf6 {[%emt 0:00:03]} (62. Ba5 $142 Kd7 63. Bxc7 Bd3 64. Bd6 Bf5 65. Ba4+ Kd8 66. Kf6 Be4 67. Be7+ Kc7 68. Be8) 62... Kd7 {[%emt 0:00:03]} 63. Ba4+ {[%emt 0:00:02]} Kd8 {[%emt 0:00:04]} 64. Ba5 {[%emt 0:00:00] White mates.} Kc8 {[%emt 0:00:01]} 65. Bxc7 {[%emt 0:00:01]} Kxc7 {[%emt 0:00:00]} 66. Be8 {[%emt 0:00:00] Weighted Error Value: White=0.17 (very precise) /Black=0.32} 1-0